fUST/lending_fUST_20250208
["ID","MTS","AMOUNT","RATE_DAILY","PERIOD"]
[352152852,1738962654357,-610.05,0.00011506,2]
[352152854,1738962654366,-432.633577,0.00011506,2]
[352152855,1738962654376,-500.0,0.00011506,2]
[352152858,1738962654386,-500.0,0.00011506,2]
[352152860,1738962654395,-500.0,0.00011506,2]
[352152861,1738962654405,-432.633577,0.00011506,2]
[352152875,1738962654519,-500.0,0.00011506,2]
[352152877,1738962654542,-316.049395,0.00011506,2]
[352152879,1738962654553,-316.049395,0.00011506,2]
[352152881,1738962654563,-500.0,0.00011506,2]
[352152883,1738962654573,-500.0,0.00011506,2]
[352152885,1738962654583,-1185.69,0.00011506,2]
[352152887,1738962654593,-500.0,0.00011506,2]
[352152889,1738962654602,-500.0,0.00011506,2]
[352152891,1738962654612,-500.0,0.00011506,2]
[352152893,1738962654621,-500.0,0.00011506,2]
[352152895,1738962654631,-500.0,0.00011506,2]
[352152897,1738962654640,-956.52,0.00011506,2]
[352152899,1738962654649,-151.0,0.00011506,2]
[352152901,1738962654659,-500.0,0.00011506,2]
[352152903,1738962654668,-639.47,0.00011506,2]
[352152905,1738962654678,-545.76094174,0.00011506,2]
[352152907,1738962654687,-500.0,0.00011506,2]
[352152909,1738962654697,-151.0,0.00011506,2]
[352152911,1738962654706,-500.0,0.00011506,2]
[352152913,1738962654715,-682.63,0.00011506,2]
[352152915,1738962654726,-151.0,0.00011506,2]
[352152918,1738962654737,-327.654678,0.00011506,2]
[352152920,1738962654747,-351.223628,0.00011506,2]
[352152922,1738962654756,-500.0,0.00011506,2]
[352152923,1738962654766,-1260.39,0.00011506,2]
[352152926,1738962654776,-351.223628,0.00011506,2]
[352152927,1738962654785,-799.91,0.00011506,2]
[352152930,1738962654795,-500.0,0.00011506,2]
[352152932,1738962654805,-514.16,0.00011506,2]
[352152934,1738962654815,-589.88,0.00011506,2]
[352152935,1738962654825,-500.0,0.00011506,2]
[352152937,1738962654834,-500.0,0.00011506,2]
[352152940,1738962654844,-499.368706,0.00011506,2]
[352152942,1738962654855,-151.0,0.00011506,2]
[352152943,1738962654864,-499.368706,0.00011506,2]
[352152945,1738962654874,-1201.86,0.00011506,2]
[352152948,1738962654883,-210.675468,0.00011506,2]
[352152949,1738962654892,-298.36,0.00011506,2]
[352152952,1738962654902,-210.675468,0.00011506,2]
[352152954,1738962654912,-706.87,0.00011506,2]
[352152956,1738962654921,-500.0,0.00011506,2]
[352152958,1738962654931,-600.84,0.00011506,2]
[352152960,1738962654942,-500.0,0.00011506,2]
[352152962,1738962654951,-742.471922,0.00011506,2]
[352152964,1738962654961,-500.0,0.00011506,2]
[352152966,1738962654970,-500.0,0.00011506,2]
[352152967,1738962654980,-742.471922,0.00011506,2]
[352152969,1738962654989,-500.0,0.00011506,2]
[352152972,1738962654999,-979.254684,0.00011506,2]
[352152973,1738962655009,-500.0,0.00011506,2]
[352152976,1738962655019,-406.260727,0.00011506,2]
[352152978,1738962655028,-979.254684,0.00011506,2]
[352152979,1738962655037,-406.260727,0.00011506,2]
[352152981,1738962655047,-500.0,0.00011506,2]
[352152984,1738962655058,-500.0,0.00011506,2]
[352152985,1738962655067,-500.0,0.00011506,2]
[352152988,1738962655077,-500.0,0.00011506,2]
[352152990,1738962655087,-811.88,0.00011506,2]
[352152991,1738962655097,-151.0,0.00011506,2]
[352152994,1738962655107,-151.0,0.00011506,2]
[352152996,1738962655117,-500.0,0.00011506,2]
[352152998,1738962655126,-1095.57,0.00011506,2]
[352153000,1738962655136,-500.0,0.00011506,2]
[352153002,1738962655146,-315.753272,0.00011506,2]
[352153004,1738962655156,-1081.61,0.00011506,2]
[352153006,1738962655165,-315.753272,0.00011506,2]
[352153008,1738962655175,-500.0,0.00011506,2]
[352153010,1738962655184,-500.0,0.00011506,2]
[352153012,1738962655193,-203.32,0.00011506,2]
[352153014,1738962655203,-500.0,0.00011506,2]
[352153016,1738962655212,-657.72,0.00011506,2]
[352153017,1738962655221,-500.0,0.00011506,2]
[352153019,1738962655231,-452.0970645,0.00011506,2]
[352153021,1738962655242,-500.0,0.00011506,2]
[352153023,1738962655252,-651.601454,0.00011506,2]
[352153025,1738962655261,-1372.29,0.00011506,2]
[352153027,1738962655272,-651.601454,0.00011506,2]
[352153029,1738962655281,-151.0,0.00011506,2]
[352153031,1738962655291,-500.0,0.00011506,2]
[352153033,1738962655300,-151.0,0.00011506,2]
[352153035,1738962655310,-500.0,0.00011506,2]
[352153037,1738962655319,-500.0,0.00011506,2]
[352153039,1738962655329,-500.0,0.00011506,2]
[352153041,1738962655339,-879.56,0.00011506,2]
[352153043,1738962655348,-500.0,0.00011506,2]
[352153045,1738962655358,-5142.41,0.00011506,2]
[352153047,1738962655368,-1524.91,0.00011506,2]
[352153049,1738962655378,-500.0,0.00011506,2]
[352153051,1738962655387,-699.39,0.00011506,2]
[352153053,1738962655396,-500.0,0.00011506,2]
[352153055,1738962655405,-977.48,0.00011506,2]
[352153057,1738962655415,-500.0,0.00011506,2]
[352153059,1738962655425,-1198.95,0.00011506,2]
[352153061,1738962655434,-1629.55,0.00011506,2]
[352153063,1738962655444,-643.46,0.00011506,2]
[352153065,1738962655453,-500.0,0.00011506,2]
[352153067,1738962655462,-500.0,0.00011506,2]
[352153069,1738962655472,-500.0,0.00011506,2]
[352153071,1738962655484,-814.97,0.00011506,2]
[352153073,1738962655496,-500.0,0.00011506,2]
[352153075,1738962655506,-2506.37,0.00011506,2]
[352153077,1738962655517,-500.0,0.00011506,2]
[352153079,1738962655527,-500.0,0.00011506,2]
[352153081,1738962655536,-500.0,0.00011506,2]
[352153083,1738962655546,-7452.65,0.00011506,2]
[352153085,1738962655556,-156.8,0.00011506,2]
[352153086,1738962655566,-3342.84,0.00011506,2]
[352153088,1738962655576,-500.0,0.00011506,2]
[352153090,1738962655586,-500.0,0.00011506,2]
[352153092,1738962655595,-500.0,0.00011506,2]
[352153094,1738962655605,-897.79,0.00011506,2]
[352153096,1738962655615,-500.0,0.00011506,2]
[352153098,1738962655625,-1940.58,0.00011506,2]
[352153100,1738962655635,-782.94,0.00011506,2]
[352153102,1738962655646,-4324.35,0.00011506,2]
[352153104,1738962655657,-500.0,0.00011506,2]
[352153106,1738962655668,-471.21177192,0.00011506,2]
[352153108,1738962655678,-500.0,0.00011506,2]
[352153110,1738962655688,-500.0,0.00011506,2]
[352153112,1738962655697,-711.25,0.00011506,2]
[352153114,1738962655709,-927.85,0.00011506,2]
[352153116,1738962655719,-642.82,0.00011506,2]
[352153118,1738962655729,-500.0,0.00011506,2]
[352153120,1738962655739,-500.0,0.00011506,2]
[352153122,1738962655749,-3853.86,0.00011506,2]
[352153124,1738962655759,-500.0,0.00011506,2]
[352153126,1738962655771,-1709.259368,0.00011506,2]
[352153128,1738962655781,-785.47,0.00011506,2]
[352153130,1738962655791,-9180.41,0.00011506,2]
[352153132,1738962655801,-1709.259368,0.00011506,2]
[352153134,1738962655811,-500.0,0.00011506,2]
[352153136,1738962655821,-500.0,0.00011506,2]
[352153138,1738962655831,-519.86851617,0.00011506,2]
[352153140,1738962655840,-500.0,0.00011506,2]
[352153142,1738962655850,-500.0,0.00011506,2]
[352153144,1738962655859,-500.0,0.00011506,2]
[352153146,1738962655869,-500.0,0.00011506,2]
[352153148,1738962655879,-500.0,0.00011506,2]
[352153150,1738962655889,-500.0,0.00011506,2]
[352153152,1738962655899,-500.0,0.00011506,2]
[352153154,1738962655908,-500.0,0.00011506,2]
[352153156,1738962655917,-871.26,0.00011506,2]
[352153157,1738962655927,-584.32,0.00011506,2]
[352153159,1738962655938,-5445.99,0.00011506,2]
[352153161,1738962655948,-500.0,0.00011506,2]
[352153163,1738962655958,-500.0,0.00011506,2]
[352153165,1738962655968,-976.93,0.00011506,2]
[352153167,1738962655978,-970.67,0.00011506,2]
[352153169,1738962655988,-843.32,0.00011506,2]
[352153171,1738962655999,-501.54,0.00011506,2]
[352153173,1738962656008,-151.0,0.00011506,2]
[352153175,1738962656022,-2755.25,0.00011506,2]
[352153177,1738962656032,-500.0,0.00011506,2]
[352153179,1738962656042,-1544.76,0.00011506,2]
[352153181,1738962656052,-500.0,0.00011506,2]
[352153183,1738962656062,-1317.1,0.00011506,2]
[352153185,1738962656072,-500.0,0.00011506,2]
[352153187,1738962656082,-43804.69,0.00011506,2]
[352153189,1738962656092,-500.0,0.00011506,2]
[352153191,1738962656102,-500.0,0.00011506,2]
[352153193,1738962656112,-2139.86,0.00011506,2]
[352153195,1738962656122,-16502.59,0.00011506,2]
[352153197,1738962656131,-999.27,0.00011506,2]
[352153199,1738962656142,-672.978993,0.00011506,2]
[352153201,1738962656153,-672.978993,0.00011506,2]
[352153203,1738962656163,-500.0,0.00011506,2]
[352153205,1738962656173,-505.61,0.00011506,2]
[352153207,1738962656183,-500.0,0.00011506,2]
[352153209,1738962656193,-1207.9,0.00011506,2]
[352153211,1738962656203,-1643.97,0.00011506,2]
[352153213,1738962656212,-500.0,0.00011506,2]
[352153215,1738962656222,-634.83,0.00011506,2]
[352153217,1738962656232,-500.0,0.00011506,2]
[352153219,1738962656241,-500.0,0.00011506,2]
[352153221,1738962656251,-1250.7,0.00011506,2]
[352153223,1738962656260,-699.07,0.00011506,2]
[352153225,1738962656272,-5896.95,0.00011506,2]
[352153227,1738962656282,-620.11,0.00011506,2]
[352153229,1738962656291,-2219.74,0.00011506,2]
[352153231,1738962656301,-528.68,0.00011506,2]
[352153233,1738962656311,-1277.73,0.00011506,2]
[352153235,1738962656321,-500.0,0.00011506,2]
[352153237,1738962656330,-500.0,0.00011506,2]
[352153239,1738962656339,-1469.2,0.00011506,2]
[352153241,1738962656349,-5599.01,0.00011506,2]
[352153243,1738962656358,-830.238234,0.00011506,2]
[352153245,1738962656367,-2505.05,0.00011506,2]
[352153247,1738962656377,-500.0,0.00011506,2]
[352153249,1738962656387,-618.83,0.00011506,2]
[352153250,1738962656397,-830.238234,0.00011506,2]
[352153252,1738962656406,-770.29,0.00011506,2]
[352153255,1738962656416,-151.0,0.00011506,2]
[352153257,1738962656426,-151.0,0.00011506,2]
[352153258,1738962656436,-2636.82,0.00011506,2]
[352153261,1738962656448,-14885.98,0.00011506,2]
[352153262,1738962656457,-19198.2,0.00011506,2]
[352153265,1738962656467,-500.0,0.00011506,2]
[352153266,1738962656477,-500.0,0.00011506,2]
[352153268,1738962656488,-500.0,0.00011506,2]
[352153270,1738962656503,-1694.48,0.00011506,2]
[352153272,1738962656513,-354.7326672,0.00011507,2]
[352153274,1738962656524,-354.7326672,0.00011507,2]
[352153276,1738962656534,-354.7326672,0.00011507,2]
[352153278,1738962656544,-354.7326672,0.00011507,2]
[352153280,1738962656553,-354.2078268,0.00011507,2]
[352153282,1738962656563,-1000.0,0.00011521,2]
[352153284,1738962656574,-1000.0,0.00011521,2]
[352153286,1738962656583,-398.1979076,0.00011526,2]
[352153288,1738962656592,-201.38,0.00011532,2]
[352153290,1738962656602,-153.0,0.00011534,2]
[352153292,1738962656611,-306.0,0.00011534,2]
[352153294,1738962656621,-154.5548552,0.00011534,2]
[352153296,1738962656630,-154.5548552,0.00011534,2]
[352153298,1738962656640,-153.0,0.00011534,2]
[352153300,1738962656650,-215.772047,0.00011534,2]
[352153302,1738962656660,-153.0,0.00011534,2]
[352153304,1738962656669,-153.0,0.00011534,2]
[352153306,1738962656680,-215.772047,0.00011534,2]
[352153308,1738962656690,-153.0,0.00011534,2]
[352153310,1738962656699,-154.5548552,0.00011534,2]
[352153311,1738962656708,-154.5548552,0.00011534,2]
[352153313,1738962656717,-215.772047,0.00011534,2]
[352153315,1738962656727,-154.5548552,0.00011534,2]
[352153317,1738962656736,-153.0,0.00011534,2]
[352153319,1738962656746,-215.772047,0.00011534,2]
[352153321,1738962656756,-357.1793726,0.00011534,2]
[352153323,1738962656766,-215.772047,0.00011534,2]
[352153325,1738962656776,-213.6257166,0.00011534,2]
[352153327,1738962656786,-151.0,0.000116,2]
[352153329,1738962656795,-276.07053503,0.00011606,2]
[352153331,1738962656805,-1000.0,0.00011621,2]
[352153333,1738962656813,-346.72850719,0.00011642,2]
[352153335,1738962656823,-275.77,0.00011643,2]
[352153337,1738962656832,-151.0,0.00011643,2]
[352153339,1738962656842,-500.0,0.00011643,2]
[352153341,1738962656851,-507.85,0.00011643,2]
[352153343,1738962656861,-500.0,0.00011643,2]
[352153345,1738962656870,-500.0,0.00011643,2]
[352153347,1738962656880,-607.3,0.00011643,2]
[352153349,1738962656890,-853.45,0.00011643,2]
[352153351,1738962656900,-500.0,0.00011643,2]
[352153352,1738962656910,-500.0,0.00011643,2]
[352153365,1738962657032,-156.471295,0.00011643,2]
[352153367,1738962657043,-500.0,0.00011643,2]
[352153369,1738962657054,-610.05,0.00011643,2]
[352153371,1738962657064,-432.633577,0.00011643,2]
[352153373,1738962657075,-500.0,0.00011643,2]
[352153375,1738962657086,-207.60939306,0.00011643,2]
[352153377,1738962657095,-500.0,0.00011643,2]
[352153379,1738962657105,-432.633577,0.00011643,2]
[352153381,1738962657114,-500.0,0.00011643,2]
[352153383,1738962657124,-316.049395,0.00011643,2]
[352153385,1738962657134,-316.049395,0.00011643,2]
[352153387,1738962657144,-500.0,0.00011643,2]
[352153389,1738962657153,-500.0,0.00011643,2]
[352153391,1738962657163,-1185.69,0.00011643,2]
[352153393,1738962657172,-500.0,0.00011643,2]
[352153395,1738962657181,-500.0,0.00011643,2]
[352153397,1738962657191,-402.23777224,0.00011643,2]
[352153399,1738962657200,-547.46551857,0.00011643,2]
[352153401,1738962657210,-500.0,0.00011643,2]
[352153403,1738962657220,-956.52,0.00011643,2]
[352153405,1738962657230,-151.0,0.00011643,2]
[352153407,1738962657239,-500.0,0.00011643,2]
[352153409,1738962657249,-639.47,0.00011643,2]
[352153411,1738962657259,-151.0,0.00011643,2]
[352153413,1738962657271,-682.63,0.00011643,2]
[352153415,1738962657281,-500.0,0.00011643,2]
[352153417,1738962657290,-151.0,0.00011643,2]
[352153419,1738962657300,-327.654678,0.00011643,2]
[352153421,1738962657310,-351.223628,0.00011643,2]
[352153423,1738962657319,-500.0,0.00011643,2]
[352153425,1738962657329,-1260.39,0.00011643,2]
[352153427,1738962657338,-351.223628,0.00011643,2]
[352153429,1738962657348,-799.91,0.00011643,2]
[352153430,1738962657357,-500.0,0.00011643,2]
[352153432,1738962657366,-500.0,0.00011643,2]
[352153434,1738962657376,-589.88,0.00011643,2]
[352153436,1738962657385,-500.0,0.00011643,2]
[352153437,1738962657394,-499.368706,0.00011643,2]
[352153438,1738962657403,-499.368706,0.00011643,2]
[352153439,1738962657412,-1201.86,0.00011643,2]
[352153440,1738962657422,-210.675468,0.00011643,2]
[352153441,1738962657431,-210.675468,0.00011643,2]
[352153442,1738962657440,-706.87,0.00011643,2]
[352153443,1738962657449,-500.0,0.00011643,2]
[352153444,1738962657458,-600.84,0.00011643,2]
[352153445,1738962657468,-742.471922,0.00011643,2]
[352153446,1738962657477,-647.41,0.00011643,2]
[352153447,1738962657489,-500.0,0.00011643,2]
[352153448,1738962657498,-500.0,0.00011643,2]
[352153449,1738962657507,-742.471922,0.00011643,2]
[352153450,1738962657517,-201.77620619,0.00011643,2]
[352153451,1738962657526,-979.254684,0.00011643,2]
[352153452,1738962657535,-500.0,0.00011643,2]
[352153453,1738962657544,-406.260727,0.00011643,2]
[352153454,1738962657553,-979.254684,0.00011643,2]
[352153455,1738962657563,-406.260727,0.00011643,2]
[352153456,1738962657573,-500.0,0.00011643,2]
[352153457,1738962657582,-500.0,0.00011643,2]
[352153459,1738962657590,-500.0,0.00011643,2]
[352153460,1738962657599,-500.0,0.00011643,2]
[352153462,1738962657609,-811.88,0.00011643,2]
[352153464,1738962657618,-151.0,0.00011643,2]
[352153466,1738962657627,-151.0,0.00011643,2]
[352153468,1738962657636,-1095.57,0.00011643,2]
[352153470,1738962657646,-642.76,0.00011643,2]
[352153472,1738962657655,-315.753272,0.00011643,2]
[352153474,1738962657665,-1081.61,0.00011643,2]
[352153476,1738962657674,-315.753272,0.00011643,2]
[352153478,1738962657683,-500.0,0.00011643,2]
[352153480,1738962657693,-500.0,0.00011643,2]
[352153482,1738962657702,-248.57941932,0.00011643,2]
[352153484,1738962657712,-657.72,0.00011643,2]
[352153486,1738962657721,-500.0,0.00011643,2]
[352153488,1738962657731,-500.0,0.00011643,2]
[352153490,1738962657742,-1372.29,0.00011643,2]
[352153492,1738962657751,-651.601454,0.00011643,2]
[352153494,1738962657761,-651.601454,0.00011643,2]
[352153496,1738962657771,-151.0,0.00011643,2]
[352153498,1738962657780,-500.0,0.00011643,2]
[352153500,1738962657790,-151.0,0.00011643,2]
[352153502,1738962657800,-500.0,0.00011643,2]
[352153504,1738962657810,-500.0,0.00011643,2]
[352153506,1738962657820,-879.56,0.00011643,2]
[352153508,1738962657830,-500.0,0.00011643,2]
[352153510,1738962657840,-5142.41,0.00011643,2]
[352153512,1738962657850,-1524.91,0.00011643,2]
[352153514,1738962657859,-699.39,0.00011643,2]
[352153516,1738962657869,-500.0,0.00011643,2]
[352153518,1738962657879,-977.48,0.00011643,2]
[352153520,1738962657889,-500.0,0.00011643,2]
[352153522,1738962657898,-1198.95,0.00011643,2]
[352153524,1738962657909,-1629.55,0.00011643,2]
[352153526,1738962657918,-643.46,0.00011643,2]
[352153528,1738962657928,-500.0,0.00011643,2]
[352153530,1738962657937,-500.0,0.00011643,2]
[352153532,1738962657946,-500.0,0.00011643,2]
[352153534,1738962657955,-814.97,0.00011643,2]
[352153536,1738962657965,-500.0,0.00011643,2]
[352153538,1738962657974,-2506.37,0.00011643,2]
[352153540,1738962657983,-500.0,0.00011643,2]
[352153542,1738962657992,-500.0,0.00011643,2]
[352153544,1738962658002,-500.0,0.00011643,2]
[352153546,1738962658011,-7452.65,0.00011643,2]
[352153548,1738962658020,-3342.84,0.00011643,2]
[352153550,1738962658030,-500.0,0.00011643,2]
[352153552,1738962658039,-474.45704257,0.00011643,2]
[352153554,1738962658049,-897.79,0.00011643,2]
[352153556,1738962658058,-500.0,0.00011643,2]
[352153558,1738962658067,-1940.58,0.00011643,2]
[352153560,1738962658077,-782.94,0.00011643,2]
[352153562,1738962658087,-4324.35,0.00011643,2]
[352153564,1738962658096,-500.0,0.00011643,2]
[352153566,1738962658105,-455.31,0.00011643,2]
[352153568,1738962658114,-500.0,0.00011643,2]
[352153570,1738962658123,-711.25,0.00011643,2]
[352153573,1738962658141,-927.85,0.00011643,2]
[352153575,1738962658153,-642.82,0.00011643,2]
[352153577,1738962658164,-500.0,0.00011643,2]
[352153579,1738962658174,-500.0,0.00011643,2]
[352153581,1738962658185,-3853.86,0.00011643,2]
[352153583,1738962658195,-500.0,0.00011643,2]
[352153585,1738962658205,-1709.259368,0.00011643,2]
[352153588,1738962658216,-785.47,0.00011643,2]
[352153590,1738962658225,-9180.41,0.00011643,2]
[352153591,1738962658235,-1709.259368,0.00011643,2]
[352153594,1738962658245,-500.0,0.00011643,2]
[352153596,1738962658255,-500.0,0.00011643,2]
[352153598,1738962658265,-500.0,0.00011643,2]
[352153599,1738962658275,-500.0,0.00011643,2]
[352153601,1738962658286,-500.0,0.00011643,2]
[352153604,1738962658296,-500.0,0.00011643,2]
[352153606,1738962658306,-500.0,0.00011643,2]
[352153608,1738962658316,-500.0,0.00011643,2]
[352153610,1738962658326,-500.0,0.00011643,2]
[352153612,1738962658336,-500.0,0.00011643,2]
[352153614,1738962658345,-871.26,0.00011643,2]
[352153616,1738962658355,-5445.99,0.00011643,2]
[352153618,1738962658366,-500.0,0.00011643,2]
[352153620,1738962658376,-500.0,0.00011643,2]
[352153622,1738962658387,-976.93,0.00011643,2]
[352153624,1738962658397,-843.32,0.00011643,2]
[352153626,1738962658407,-970.67,0.00011643,2]
[352153628,1738962658417,-501.54,0.00011643,2]
[352153630,1738962658427,-2755.25,0.00011643,2]
[352153632,1738962658436,-500.0,0.00011643,2]
[352153634,1738962658446,-1544.76,0.00011643,2]
[352153636,1738962658456,-500.0,0.00011643,2]
[352153638,1738962658466,-1317.1,0.00011643,2]
[352153640,1738962658476,-500.0,0.00011643,2]
[352153642,1738962658488,-43804.69,0.00011643,2]
[352153644,1738962658499,-500.0,0.00011643,2]
[352153646,1738962658508,-500.0,0.00011643,2]
[352153648,1738962658518,-2139.86,0.00011643,2]
[352153650,1738962658529,-16502.59,0.00011643,2]
[352153652,1738962658538,-999.27,0.00011643,2]
[352153654,1738962658548,-672.978993,0.00011643,2]
[352153656,1738962658558,-672.978993,0.00011643,2]
[352153658,1738962658571,-500.0,0.00011643,2]
[352153660,1738962658582,-505.61,0.00011643,2]
[352153662,1738962658592,-500.0,0.00011643,2]
[352153664,1738962658603,-1207.9,0.00011643,2]
[352153666,1738962658613,-1643.97,0.00011643,2]
[352153668,1738962658623,-500.0,0.00011643,2]
[352153670,1738962658633,-634.83,0.00011643,2]
[352153673,1738962658643,-305.90472938,0.00011643,2]
[352153675,1738962658653,-500.0,0.00011643,2]
[352153677,1738962658663,-1250.7,0.00011643,2]
[352153679,1738962658673,-699.07,0.00011643,2]
[352153681,1738962658682,-5896.95,0.00011643,2]
[352153683,1738962658692,-620.11,0.00011643,2]
[352153685,1738962658701,-2219.74,0.00011643,2]
[352153687,1738962658710,-528.68,0.00011643,2]
[352153689,1738962658720,-1277.73,0.00011643,2]
[352153691,1738962658730,-361.1,0.00011643,2]
[352153693,1738962658740,-1469.2,0.00011643,2]
[352153694,1738962658750,-5519.21295158,0.00011643,2]
[352153721,1738962658989,-79.79704842,0.00011643,2]
[352153723,1738962658999,-2505.05,0.00011643,2]
[352153725,1738962659009,-830.238234,0.00011643,2]
[352153727,1738962659019,-503.50750254,0.00011643,2]
[352153729,1738962659029,-618.83,0.00011643,2]
[352153731,1738962659038,-333.66285917,0.00011643,2]
[352153734,1738962659061,-500.0,0.00010958,2]
[352153736,1738962659071,-496.57537483,0.00011643,2]
[352153752,1738962659211,-770.29,0.00011643,2]
[352153754,1738962659221,-151.0,0.00011643,2]
[352153756,1738962659231,-2636.82,0.00011643,2]
[352153758,1738962659241,-151.0,0.00011643,2]
[352153760,1738962659251,-14885.98,0.00011643,2]
[352153762,1738962659261,-19198.2,0.00011643,2]
[352153764,1738962659270,-500.0,0.00011643,2]
[352153766,1738962659280,-500.0,0.00011643,2]
[352153768,1738962659290,-1694.48,0.00011643,2]
[352153770,1738962659299,-500.0,0.00011648,2]
[352153772,1738962659308,-151.0,0.0001178,2]
[352153774,1738962659318,-268.75927049,0.0001178,2]
[352153776,1738962659327,-258.06993,0.0001178,2]
[352153778,1738962659338,-271.01057,0.0001178,2]
[352153780,1738962659347,-271.01057,0.0001178,2]
[352153783,1738962659357,-271.01057,0.0001178,2]
[352153785,1738962659367,-271.01057,0.0001178,2]
[352153787,1738962659376,-285.073411,0.0001178,2]
[352153789,1738962659387,-285.073412,0.0001178,2]
[352153791,1738962659397,-151.0,0.0001178,2]
[352153793,1738962659406,-165.402054,0.0001178,2]
[352153795,1738962659415,-165.402054,0.0001178,2]
[352153797,1738962659426,-165.402054,0.0001178,2]
[352153799,1738962659435,-165.402054,0.0001178,2]
[352153801,1738962659444,-176.734843,0.0001178,2]
[352153803,1738962659454,-176.734843,0.0001178,2]
[352153805,1738962659463,-176.734843,0.0001178,2]
[352153807,1738962659472,-176.734843,0.0001178,2]
[352153809,1738962659482,-500.0,0.0001178,2]
[352153811,1738962659496,-151.0,0.0001178,2]
[352153813,1738962659505,-507.85,0.0001178,2]
[352153815,1738962659514,-500.0,0.0001178,2]
[352153817,1738962659524,-500.0,0.0001178,2]
[352153819,1738962659533,-297.115337,0.0001178,2]
[352153821,1738962659543,-297.115337,0.0001178,2]
[352153823,1738962659552,-297.115337,0.0001178,2]
[352153825,1738962659561,-297.115337,0.0001178,2]
[352153827,1738962659573,-607.3,0.0001178,2]
[352153829,1738962659583,-853.45,0.0001178,2]
[352153831,1738962659592,-500.0,0.0001178,2]
[352153833,1738962659601,-500.0,0.0001178,2]
[352153835,1738962659611,-156.471295,0.0001178,2]
[352153837,1738962659621,-253.1,0.0001178,2]
[352153839,1738962659631,-610.05,0.0001178,2]
[352153841,1738962659640,-432.633577,0.0001178,2]
[352153843,1738962659650,-500.0,0.0001178,2]
[352153845,1738962659659,-500.0,0.0001178,2]
[352153847,1738962659669,-432.633577,0.0001178,2]
[352153849,1738962659678,-503.96357399,0.0001178,2]
[352153851,1738962659687,-316.049395,0.0001178,2]
[352153853,1738962659697,-316.049395,0.0001178,2]
[352153855,1738962659706,-500.0,0.0001178,2]
[352153857,1738962659715,-500.0,0.0001178,2]
[352153859,1738962659724,-1185.69,0.0001178,2]
[352153861,1738962659733,-432.61976284,0.0001178,2]
[352153863,1738962659742,-500.0,0.0001178,2]
[352153865,1738962659752,-500.0,0.0001178,2]
[352153867,1738962659761,-956.52,0.0001178,2]
[352153869,1738962659770,-151.0,0.0001178,2]
[352153871,1738962659780,-639.47,0.0001178,2]
[352153873,1738962659789,-151.0,0.0001178,2]
[352153875,1738962659798,-682.63,0.0001178,2]
[352153878,1738962659808,-500.0,0.0001178,2]
[352153880,1738962659817,-327.654678,0.0001178,2]
[352153882,1738962659826,-151.0,0.0001178,2]
[352153884,1738962659835,-327.654678,0.0001178,2]
[352153885,1738962659844,-351.223628,0.0001178,2]
[352153887,1738962659854,-512.80143357,0.0001178,2]